fUSD/lending_fUSD_20260519
["ID","MTS","AMOUNT","RATE_DAILY","PERIOD"]
[422596428,1779135056000,-502.0,0.0003021,5]
[422596420,1779135056000,-502.0,0.00028366,3]
[422596426,1779135056000,-183.95,0.0002863,2]
[422596430,1779135056000,-4099.67691928,0.00037402,30]
[422596441,1779135550000,11313.0,0.00030137,120]
[422596446,1779135614000,-250.0,0.00011942,2]
[422596445,1779135614000,-250.0,0.00011666,2]
[422596443,1779135614000,-2361.72,0.00011245,2]
[422596444,1779135614000,-150.0,0.0001134,2]
[422596442,1779135614000,-1059.70895469,0.00011229,2]
[422596447,1779135796000,-158.19723096,0.00012229,2]
[422596451,1779135796000,-160.0,0.00012328,2]
[422596448,1779135796000,-208.5339928,0.00012296,2]
[422596449,1779135796000,-215.11887611,0.0001232,2]
[422596452,1779135796000,-174.87,0.00012329,2]
[422596453,1779135796000,-150.0,0.00012369,2]
[422596450,1779135796000,-1200.0,0.00012328,2]
[422596459,1779135797000,-299.99,0.0001237,2]
[422596460,1779135797000,-10553.34,0.0001237,2]
[422596458,1779135797000,-9999.99,0.0001237,2]
[422596457,1779135797000,-851.11,0.0001237,2]
[422596455,1779135797000,-300.76409514,0.0001237,2]
[422596456,1779135797000,-14129.03,0.0001237,2]
[422596454,1779135797000,-300.0,0.00012369,2]
[422596462,1779135810000,155.144,0.00012369,2]
[422596461,1779135810000,1540.702,0.00012369,2]
[422596464,1779135847000,-300.0,0.00013266,2]
[422596463,1779135847000,-158.19723096,0.00013167,2]
[422596467,1779135847000,-499.99,0.00013267,2]
[422596466,1779135847000,-9999.99,0.00013267,2]
[422596465,1779135847000,-1000.0,0.00013266,2]
[422596489,1779135848000,-3540.26324857,0.00013598,2]
[422596468,1779135848000,-9999.99,0.00013267,2]
[422596469,1779135848000,-999.99,0.00013267,2]
[422596470,1779135848000,-150.99,0.00013267,2]
[422596471,1779135848000,-2500.0,0.00013498,2]
[422596473,1779135848000,-329.30038695,0.00013515,2]
[422596487,1779135848000,-278.20280153,0.00013597,2]
[422596474,1779135848000,-2862.00202977,0.00013526,2]
[422596475,1779135848000,-250.0,0.00013526,2]
[422596477,1779135848000,-211.61607221,0.00013597,2]
[422596472,1779135848000,-4079.5235,0.00013498,2]
[422596480,1779135848000,-244.11716453,0.00013597,2]
[422596478,1779135848000,-571.89778002,0.00013597,2]
[422596486,1779135848000,-500.0,0.00013597,2]
[422596485,1779135848000,-500.0,0.00013597,2]
[422596483,1779135848000,-500.0,0.00013597,2]
[422596488,1779135848000,-2000.0,0.00013597,2]
[422596482,1779135848000,-500.0,0.00013597,2]
[422596481,1779135848000,-176.78404344,0.00013597,2]
[422596479,1779135848000,-500.0,0.00013597,2]
[422596484,1779135848000,-500.0,0.00013597,2]
[422596476,1779135848000,-1680.0,0.00013561,2]
[422596493,1779135920000,201.87,0.00025506,120]
[422596510,1779136231000,-386.35085355,0.00013515,2]
[422596503,1779136231000,-1200.0,0.00013497,2]
[422596504,1779136231000,-300.0,0.00013497,2]
[422596506,1779136231000,-6802.7648,0.00013498,2]
[422596507,1779136231000,-4168.5776,0.00013498,2]
[422596505,1779136231000,-11813.7049,0.00013498,2]
[422596508,1779136231000,-2500.0,0.00013498,2]
[422596514,1779136231000,-208.5339928,0.00013591,2]
[422596513,1779136231000,-160.0,0.00013591,2]
[422596512,1779136231000,-197.81098472,0.0001353,2]
[422596517,1779136231000,-44193.98046734,0.00013598,2]
[422596509,1779136231000,-28043.34544122,0.00013515,2]
[422596516,1779136231000,-32257.01464568,0.00013598,2]
[422596515,1779136231000,-839656.68427999,0.00013598,2]
[422596520,1779136231000,-370.50525017,0.00013598,2]
[422596518,1779136231000,-631.16,0.00013598,2]
[422596519,1779136231000,-5722.88516066,0.00013598,2]
[422596511,1779136231000,-6691.92348216,0.00013515,2]
[422596539,1779136237000,-280.130245,0.00013598,2]
[422596543,1779136239000,-540.05395328,0.00013598,2]
[422596542,1779136239000,-776.90309751,0.00013598,2]
[422596544,1779136240000,-523312.72083659,0.00013598,2]
[422596547,1779136240000,-56906.0396682,0.00013615,2]
[422596546,1779136240000,-34484.37688391,0.00013598,2]
[422596545,1779136240000,-188370.46937987,0.00013598,2]
[422596659,1779136241000,-500.0,0.00013698,2]
[422596653,1779136241000,-500.0,0.00013698,2]
[422596662,1779136241000,-200.0,0.00013815,2]
[422596654,1779136241000,-500.0,0.00013698,2]
[422596656,1779136241000,-500.0,0.00013698,2]
[422596660,1779136241000,-10653.18,0.00013733,2]
[422596657,1779136241000,-500.0,0.00013698,2]
[422596664,1779136241000,-118973.17,0.00013815,2]
[422596672,1779136241000,-2510.28,0.00014449,2]
[422596674,1779136241000,-183.6,0.00014563,2]
[422596667,1779136241000,-150.99,0.00013815,2]
[422596665,1779136241000,-1201.75,0.00013815,2]
[422596666,1779136241000,-9999.99,0.00013815,2]
[422596670,1779136241000,-778.82,0.0001411,2]
[422596655,1779136241000,-500.0,0.00013698,2]
[422596668,1779136241000,-999.99,0.00013815,2]
[422596671,1779136241000,-1201.75,0.0001416,2]
[422596663,1779136241000,-200.0,0.00013815,2]
[422596658,1779136241000,-500.0,0.00013698,2]
[422596647,1779136241000,-500.0,0.00013698,2]
[422596652,1779136241000,-500.0,0.00013698,2]
[422596628,1779136241000,-1645.54075,0.00013615,2]
[422596631,1779136241000,-9110.72618623,0.00013615,2]
[422596632,1779136241000,-500.0,0.00013698,2]
[422596630,1779136241000,-3160.485,0.00013615,2]
[422596633,1779136241000,-500.0,0.00013698,2]
[422596635,1779136241000,-500.0,0.00013698,2]
[422596645,1779136241000,-500.0,0.00013698,2]
[422596646,1779136241000,-500.0,0.00013698,2]
[422596649,1779136241000,-500.0,0.00013698,2]
[422596634,1779136241000,-500.0,0.00013698,2]
[422596637,1779136241000,-500.0,0.00013698,2]
[422596636,1779136241000,-500.0,0.00013698,2]
[422596669,1779136241000,-250.0,0.00014,2]
[422596640,1779136241000,-500.0,0.00013698,2]
[422596639,1779136241000,-500.0,0.00013698,2]
[422596644,1779136241000,-500.0,0.00013698,2]
[422596642,1779136241000,-500.0,0.00013698,2]
[422596651,1779136241000,-500.0,0.00013698,2]
[422596673,1779136241000,-1201.75,0.00014506,2]
[422596650,1779136241000,-500.0,0.00013698,2]
[422596676,1779136241000,-183.6,0.00014563,2]
[422596700,1779136241000,-201.87,0.00017004,2]
[422596710,1779136241000,-233.5,0.0001841,2]
[422596699,1779136241000,-2000.0,0.00016996,2]
[422596703,1779136241000,-166.66,0.00017273,2]
[422596704,1779136241000,-166.66,0.00017608,2]
[422596705,1779136241000,-500.0,0.00017808,2]
[422596701,1779136241000,-386.35085354,0.00017117,2]
[422596702,1779136241000,-4143.06,0.0001725,2]
[422596706,1779136241000,-500.0,0.00017808,2]
[422596709,1779136241000,-350.0,0.00018,2]
[422596707,1779136241000,-236.55190921,0.00017808,2]
[422596708,1779136241000,-250.0,0.00017834,2]
[422596713,1779136241000,-28043.34544117,0.00018698,2]
[422596711,1779136241000,-160.6,0.0001858,2]
[422596715,1779136241000,-151.0,0.00018948,2]
[422596714,1779136241000,-151.0,0.00018948,2]
[422596675,1779136241000,-183.6,0.00014563,2]
[422596691,1779136241000,-1136.20359476,0.00016251,2]
[422596692,1779136241000,-166.66,0.00016267,2]
[422596712,1779136241000,-2000.0,0.00018696,2]
[422596694,1779136241000,-166.66,0.00016602,2]
[422596678,1779136241000,-5903.13,0.00014623,2]
[422596695,1779136241000,-663.41563793,0.00016699,2]
[422596677,1779136241000,-183.6,0.00014563,2]
[422596681,1779136241000,-1151.0,0.00014847,2]
[422596683,1779136241000,-160.6,0.00014864,2]
[422596680,1779136241000,-500.0,0.00014847,2]
[422596682,1779136241000,-1201.75,0.00014851,2]
[422596685,1779136241000,-326.05566422,0.00015243,2]
[422596679,1779136241000,-2500.0,0.00014847,2]
[422596684,1779136241000,-1201.75,0.00015197,2]
[422596687,1779136241000,-166.66,0.00015931,2]
[422596697,1779136241000,-666.29,0.000168,2]
[422596688,1779136241000,-300.0,0.00016,2]
[422596690,1779136241000,-28043.34544117,0.00016106,2]
[422596696,1779136241000,-622.44,0.000168,2]
[422596698,1779136241000,-166.66,0.00016937,2]
[422596689,1779136241000,-6691.92348213,0.00016047,2]
[422596686,1779136241000,-2000.0,0.00015297,2]
[422596693,1779136241000,-233.5,0.00016438,2]
[422596757,1779136242000,-500.0,0.00022623,2]
[422596756,1779136242000,-500.0,0.00022623,2]
[422596758,1779136242000,-500.0,0.00022623,2]
[422596754,1779136242000,-500.0,0.00022623,2]
[422596759,1779136242000,-500.0,0.00022623,2]
[422596749,1779136242000,-233.5,0.00022353,2]
[422596755,1779136242000,-500.0,0.00022623,2]
[422596752,1779136242000,-4307.03729354,0.00022525,2]
[422596750,1779136242000,-1241.0,0.00022367,5]
[422596751,1779136242000,-16598.11940285,0.00022525,2]
[422596761,1779136242000,-500.0,0.00022623,2]
[422596748,1779136242000,-160.6,0.00022296,2]
[422596753,1779136242000,-250.83464448,0.00022525,4]
[422596768,1779136242000,-1500000.0,0.00022624,2]
[422596767,1779136242000,-771.32,0.00022624,2]
[422596769,1779136242000,-771.32,0.00022625,2]
[422596771,1779136242000,-771.32,0.00022627,2]
[422596770,1779136242000,-771.32,0.00022626,2]
[422596772,1779136242000,-324.04,0.000227,7]
[422596773,1779136242000,-7474.84,0.0002271,2]
[422596762,1779136242000,-500.0,0.00022623,2]
[422596763,1779136242000,-500.0,0.00022623,2]
[422596764,1779136242000,-500.0,0.00022623,2]
[422596765,1779136242000,-500.0,0.00022623,2]
[422596766,1779136242000,-771.32,0.00022624,2]
[422596775,1779136242000,-150.0,0.00022831,2]
[422596774,1779136242000,-24596.83,0.0002271,2]
[422596744,1779136242000,-450.0,0.00022,2]
[422596760,1779136242000,-500.0,0.00022623,2]
[422596739,1779136242000,-150.0,0.00021031,2]
[422596727,1779136242000,-175.0,0.0002,2]
[422596776,1779136242000,-175.0,0.00023,2]
[422596722,1779136242000,-151.0,0.00018948,2]
[422596723,1779136242000,-151.0,0.00018948,2]
[422596717,1779136242000,-151.0,0.00018948,2]
[422596720,1779136242000,-151.0,0.00018948,2]
[422596718,1779136242000,-151.0,0.00018948,2]
[422596719,1779136242000,-151.0,0.00018948,2]
[422596721,1779136242000,-151.0,0.00018948,2]
[422596716,1779136242000,-151.0,0.00018948,2]
[422596726,1779136242000,-400.0,0.0002,2]
[422596724,1779136242000,-151.0,0.00018948,2]
[422596725,1779136242000,-183.64129393,0.00018948,2]
[422596735,1779136242000,-386.35085354,0.0002072,2]
[422596729,1779136242000,-229.0,0.0002,2]
[422596743,1779136242000,-200.56,0.00021918,2]
[422596728,1779136242000,-153.0,0.0002,2]
[422596731,1779136242000,-200.0,0.00020109,2]
[422596732,1779136242000,-2510.28,0.00020229,2]
[422596734,1779136242000,-2000.0,0.00020396,2]
[422596733,1779136242000,-233.5,0.00020381,2]
[422596736,1779136242000,-175.0,0.00021,2]
[422596747,1779136242000,-229.0,0.00022,2]
[422596737,1779136242000,-153.0,0.00021,2]
[422596738,1779136242000,-229.0,0.00021,2]
[422596746,1779136242000,-153.0,0.00022,2]
[422596742,1779136242000,-5000.0,0.00021918,2]
[422596745,1779136242000,-175.0,0.00022,2]
[422596740,1779136242000,-3632.0,0.00021031,2]
[422596741,1779136242000,-28043.34544117,0.00021289,2]
[422596730,1779136242000,-2694.0,0.0002,2]
[422596778,1779136242000,-200.56,0.00023744,2]
[422596811,1779136242000,-831.1,0.00025506,2]
[422596779,1779136242000,-28043.34544117,0.00023881,2]
[422596818,1779136242000,-219.6,0.00025786,2]
[422596814,1779136242000,-200.56,0.00025571,2]
[422596825,1779136242000,-233.5,0.00026296,2]
[422596816,1779136242000,-10000.0,0.00025694,2]
[422596826,1779136242000,-194.82065074,0.00026397,2]
[422596827,1779136242000,-272.6522259,0.00026397,2]
[422596829,1779136242000,-160.69672088,0.00026484,2]
[422596828,1779136242000,-28043.34544117,0.00026472,2]
[422596830,1779136242000,-17876.68584266,0.0002652,2]
[422596831,1779136242000,-1586.0,0.00026575,3]
[422596819,1779136242000,-1106.17,0.00025786,2]
[422596822,1779136242000,-152.0,0.00025818,7]
[422596823,1779136242000,-152.0,0.00025818,7]
[422596813,1779136242000,-341.72759521,0.00025553,2]
[422596832,1779136242000,-324.04,0.000268,7]
[422596833,1779136242000,-256.73,0.00027,2]
[422596835,1779136242000,-290.59,0.00027,2]
[422596840,1779136242000,-200.56830227,0.00027397,2]
[422596834,1779136242000,-290.59,0.00027,2]
[422596839,1779136242000,-181.7681506,0.00027397,7]
[422596838,1779136242000,-502.0,0.00027137,2]
[422596837,1779136242000,-150.0,0.00027123,20]
[422596842,1779136242000,-300.0,0.00027397,2]
[422596841,1779136242000,-1500.0,0.00027397,2]
[422596846,1779136242000,-22750.54,0.00027397,10]
[422596845,1779136242000,-27300.65,0.00027397,10]
[422596844,1779136242000,-15687.62,0.00027397,10]
[422596777,1779136242000,-229.0,0.00023,2]
[422596836,1779136242000,-3399.197,0.00027031,2]
[422596812,1779136242000,-274.59660207,0.00025553,2]
[422596843,1779136242000,-15687.62,0.00027397,10]
[422596804,1779136242000,-194.0,0.00025,2]
[422596780,1779136242000,-256.73,0.000239,2]
[422596781,1779136242000,-290.59,0.000239,2]
[422596785,1779136242000,-3632.0,0.00024031,2]
[422596784,1779136242000,-229.0,0.00024,2]
[422596786,1779136242000,-1998.26,0.00024087,2]
[422596783,1779136242000,-175.0,0.00024,2]
[422596782,1779136242000,-290.59,0.000239,2]
[422596787,1779136242000,-219.6,0.00024174,2]
[422596807,1779136242000,-397.0,0.00025317,10]
[422596794,1779136242000,-209.59,0.00024658,2]
[422596800,1779136242000,-1140.95399111,0.00024996,5]
[422596798,1779136242000,-18167.45,0.00024845,2]
[422596790,1779136242000,-233.5,0.00024324,2]
[422596789,1779136242000,-386.35085354,0.00024322,2]
[422596788,1779136242000,-1106.17,0.00024174,2]
[422596799,1779136242000,-324.04,0.000249,7]
[422596810,1779136242000,-831.11,0.00025506,2]
[422596793,1779136242000,-280.130245,0.00024496,14]
[422596806,1779136242000,-491.0,0.00025317,10]
[422596809,1779136242000,-272.6522259,0.00025397,2]
[422596802,1779136242000,-897.14696107,0.00024996,5]
[422596808,1779136242000,-194.82065074,0.00025397,2]
[422596805,1779136242000,-235.0,0.00025,2]
[422596801,1779136242000,-1120.9830694,0.00024996,5]
[422596796,1779136242000,-150.0,0.00024658,2]
[422596797,1779136242000,-150.0,0.00024845,2]
[422596795,1779136242000,-1000.0,0.00024658,2]
[422596791,1779136242000,-401.75,0.00024397,7]
[422596803,1779136242000,-586.7,0.00024996,30]
[422596882,1779136243000,-232.16,0.0002863,2]
[422596890,1779136243000,-1586.0,0.00028634,3]
[422596886,1779136243000,-288.16,0.0002863,2]
[422596884,1779136243000,-978.85,0.0002863,2]
[422596888,1779136243000,-1143.95,0.0002863,2]
[422596877,1779136243000,-500.0,0.00028493,2]
[422596889,1779136243000,-181.11,0.0002863,2]
[422596887,1779136243000,-301.4,0.0002863,2]
[422596879,1779136243000,-150.0,0.00028493,2]
[422596881,1779136243000,-151.0,0.0002863,2]
[422596883,1779136243000,-242.84,0.0002863,2]
[422596885,1779136243000,-192.48,0.0002863,2]
[422596900,1779136243000,-181.11,0.00028661,7]
[422596891,1779136243000,-232.16,0.00028661,7]
[422596902,1779136243000,-242.84,0.00028693,30]
[422596892,1779136243000,-242.84,0.00028661,7]
[422596893,1779136243000,-978.85,0.00028661,7]
[422596895,1779136243000,-288.16,0.00028661,7]
[422596894,1779136243000,-192.48,0.00028661,7]
[422596905,1779136243000,-192.48,0.00028693,30]
[422596899,1779136243000,-1143.95,0.00028661,7]
[422596897,1779136243000,-301.4,0.00028661,7]
[422596904,1779136243000,-978.85,0.00028693,30]
[422596906,1779136243000,-288.16,0.00028693,30]
[422596901,1779136243000,-232.16,0.00028693,30]
[422596875,1779136243000,-500.0,0.00028493,2]
[422596880,1779136243000,-5950.58,0.000285,14]
[422596874,1779136243000,-500.0,0.00028493,2]
[422596862,1779136243000,-400.0,0.0002817,2]
[422596871,1779136243000,-502.0,0.00028475,3]
[422596908,1779136243000,-1143.95,0.00028693,30]
[422596849,1779136243000,-150.0,0.00027397,2]
[422596847,1779136243000,-259.76086766,0.00027397,7]
[422596854,1779136243000,-163.0,0.00027491,3]
[422596853,1779136243000,-1586.0,0.00027448,3]
[422596851,1779136243000,-5950.58,0.000274,14]
[422596848,1779136243000,-181.7681506,0.00027397,7]
[422596852,1779136243000,-240.61,0.000274,7]
[422596850,1779136243000,-170.8,0.000274,7]
[422596855,1779136243000,-1586.0,0.00027535,3]
[422596856,1779136243000,-1586.0,0.0002768,3]
[422596857,1779136243000,-2313.0,0.00027724,3]
[422596866,1779136243000,-2313.0,0.00028314,3]
[422596859,1779136243000,-502.0,0.00027806,2]
[422596860,1779136243000,-386.35085354,0.00027925,2]
[422596864,1779136243000,-908.56951832,0.00028219,10]
[422596861,1779136243000,-187.87,0.00028,2]
[422596865,1779136243000,-233.5,0.00028267,2]
[422596858,1779136243000,-500.0,0.000278,7]
[422596863,1779136243000,-900.0,0.00028219,10]
[422596868,1779136243000,-437.4,0.00028344,2]
[422596878,1779136243000,-428.94130666,0.00028493,2]
[422596870,1779136243000,-324.04,0.000284,7]
[422596869,1779136243000,-450.0,0.00028344,2]
[422596867,1779136243000,-215.94512088,0.00028325,5]
[422596876,1779136243000,-150.0,0.00028493,2]
[422596872,1779136243000,-500.0,0.00028493,2]
[422596873,1779136243000,-500.0,0.00028493,2]
[422596911,1779136243000,-232.16,0.00028725,2]
[422596907,1779136243000,-301.4,0.00028693,30]
[422596914,1779136243000,-192.48,0.00028725,2]
[422596942,1779136243000,-978.85,0.0002882,2]
[422596948,1779136243000,-181.11,0.0002882,2]
[422596951,1779136243000,-978.85,0.00028852,7]
[422596953,1779136243000,-288.16,0.00028852,7]
[422596950,1779136243000,-242.84,0.00028852,7]
[422596952,1779136243000,-192.48,0.00028852,7]
[422596954,1779136243000,-301.4,0.00028852,7]
[422596955,1779136243000,-1143.95,0.00028852,7]
[422596956,1779136243000,-181.11,0.00028852,7]
[422596960,1779136243000,-192.48,0.00028883,30]
[422596959,1779136243000,-978.85,0.00028883,30]
[422596957,1779136243000,-232.16,0.00028883,30]
[422596961,1779136243000,-288.16,0.00028883,30]
[422596964,1779136243000,-181.11,0.00028883,30]
[422596967,1779136243000,-242.84,0.00028915,2]
[422596965,1779136243000,-1546.0,0.00028888,5]
[422596970,1779136243000,-288.16,0.00028915,2]
[422596972,1779136243000,-1143.95,0.00028915,2]
[422596969,1779136243000,-192.48,0.00028915,2]
[422596963,1779136243000,-1143.95,0.00028883,30]
[422596966,1779136243000,-232.16,0.00028915,2]
[422596962,1779136243000,-301.4,0.00028883,30]
[422596968,1779136243000,-978.85,0.00028915,2]
[422596971,1779136243000,-301.4,0.00028915,2]
[422596974,1779136243000,-232.16,0.00028947,7]
[422596973,1779136243000,-181.11,0.00028915,2]
[422596912,1779136243000,-242.84,0.00028725,2]
[422596946,1779136243000,-301.4,0.0002882,2]
[422596945,1779136243000,-288.16,0.0002882,2]
[422596958,1779136243000,-242.84,0.00028883,30]
[422596944,1779136243000,-192.48,0.0002882,2]
[422596949,1779136243000,-232.16,0.00028852,7]
[422596917,1779136243000,-1143.95,0.00028725,2]
[422596910,1779136243000,-240.61,0.000287,7]
[422596915,1779136243000,-288.16,0.00028725,2]
[422596909,1779136243000,-181.11,0.00028693,30]
[422596916,1779136243000,-301.4,0.00028725,2]
[422596913,1779136243000,-978.85,0.00028725,2]
[422596918,1779136243000,-181.11,0.00028725,2]
[422596921,1779136243000,-978.85,0.00028756,7]
[422596920,1779136243000,-242.84,0.00028756,7]
[422596922,1779136243000,-192.48,0.00028756,7]
[422596932,1779136243000,-192.48,0.00028788,30]
[422596931,1779136243000,-978.85,0.00028788,30]
[422596923,1779136243000,-288.16,0.00028756,7]
[422596919,1779136243000,-232.16,0.00028756,7]
[422596924,1779136243000,-301.4,0.00028756,7]
[422596940,1779136243000,-242.84,0.0002882,2]
[422596934,1779136243000,-301.4,0.00028788,30]
[422596938,1779136243000,-232.16,0.0002882,2]
[422596936,1779136243000,-181.11,0.00028788,30]
[422596935,1779136243000,-1143.95,0.00028788,30]
[422596933,1779136243000,-288.16,0.00028788,30]
[422596947,1779136243000,-1143.95,0.0002882,2]
[422596930,1779136243000,-242.84,0.00028788,30]
[422596929,1779136243000,-232.16,0.00028788,30]
[422596927,1779136243000,-181.11,0.00028756,7]
[422596925,1779136243000,-1143.95,0.00028756,7]
[422596928,1779136243000,-150.0,0.00028767,2]
[422597023,1779136244000,-200.0,0.0002913,7]
[422597018,1779136244000,-192.48,0.00029105,2]
[422597013,1779136244000,-1143.95,0.00029074,30]
[422597017,1779136244000,-978.85,0.00029105,2]
[422597019,1779136244000,-288.16,0.00029105,2]
[422597024,1779136244000,-232.16,0.00029137,7]
[422597015,1779136244000,-232.16,0.00029105,2]
[422597016,1779136244000,-242.84,0.00029105,2]
[422597020,1779136244000,-301.4,0.00029105,2]
[422597005,1779136244000,-181.11,0.00029042,7]
[422597007,1779136244000,-232.16,0.00029074,30]
[422597009,1779136244000,-978.85,0.00029074,30]
[422597014,1779136244000,-181.11,0.00029074,30]
[422597022,1779136244000,-181.11,0.00029105,2]
[422597032,1779136244000,-502.0,0.00029144,4]
[422597021,1779136244000,-1143.95,0.00029105,2]
[422597025,1779136244000,-242.84,0.00029137,7]
[422597027,1779136244000,-192.48,0.00029137,7]
[422597036,1779136244000,-192.48,0.00029169,30]
[422597038,1779136244000,-301.4,0.00029169,30]
[422597028,1779136244000,-288.16,0.00029137,7]
[422597026,1779136244000,-978.85,0.00029137,7]
[422597030,1779136244000,-1143.95,0.00029137,7]
[422597034,1779136244000,-242.84,0.00029169,30]
[422597035,1779136244000,-978.85,0.00029169,30]
[422597029,1779136244000,-301.4,0.00029137,7]
[422597031,1779136244000,-181.11,0.00029137,7]
[422597037,1779136244000,-288.16,0.00029169,30]
[422597004,1779136244000,-1143.95,0.00029042,7]
[422597012,1779136244000,-301.4,0.00029074,30]
[422597008,1779136244000,-242.84,0.00029074,30]
[422596980,1779136244000,-1143.95,0.00028947,7]
[422597001,1779136244000,-192.48,0.00029042,7]
[422597033,1779136244000,-232.16,0.00029169,30]
[422596984,1779136244000,-978.85,0.00028979,30]
[422596985,1779136244000,-192.48,0.00028979,30]
[422596983,1779136244000,-242.84,0.00028979,30]
[422596976,1779136244000,-978.85,0.00028947,7]
[422596975,1779136244000,-242.84,0.00028947,7]
[422596978,1779136244000,-288.16,0.00028947,7]
[422596979,1779136244000,-301.4,0.00028947,7]
[422596977,1779136244000,-192.48,0.00028947,7]
[422596981,1779136244000,-181.11,0.00028947,7]
[422596982,1779136244000,-232.16,0.00028979,30]
[422596986,1779136244000,-288.16,0.00028979,30]
[422596987,1779136244000,-301.4,0.00028979,30]
[422596988,1779136244000,-1143.95,0.00028979,30]
[422597003,1779136244000,-301.4,0.00029042,7]
[422596992,1779136244000,-978.85,0.0002901,2]
[422596991,1779136244000,-242.84,0.0002901,2]
[422596998,1779136244000,-232.16,0.00029042,7]
[422596993,1779136244000,-192.48,0.0002901,2]
[422596994,1779136244000,-288.16,0.0002901,2]
[422596996,1779136244000,-1143.95,0.0002901,2]
[422596989,1779136244000,-181.11,0.00028979,30]
[422596995,1779136244000,-301.4,0.0002901,2]
[422596990,1779136244000,-232.16,0.0002901,2]
[422597000,1779136244000,-978.85,0.00029042,7]
[422597010,1779136244000,-192.48,0.00029074,30]
[422596999,1779136244000,-242.84,0.00029042,7]
[422597011,1779136244000,-288.16,0.00029074,30]
[422597006,1779136244000,-28043.34544117,0.00029064,2]
[422597002,1779136244000,-288.16,0.00029042,7]
[422596997,1779136244000,-181.11,0.0002901,2]
[422597039,1779136244000,-1143.95,0.00029169,30]
[422597093,1779136244000,-1500.0,0.00030137,15]
[422597042,1779136244000,-275.4018519,0.00029182,7]
[422597075,1779136244000,-173.0,0.0003,14]
[422597074,1779136244000,-6659.35773695,0.0003,7]
[422597079,1779136244000,-153.0,0.00030129,30]
[422597090,1779136244000,-1500.0,0.00030137,15]
[422597087,1779136244000,-200.0,0.00030137,2]
[422597088,1779136244000,-150.0,0.00030137,30]
[422597089,1779136244000,-1500.0,0.00030137,15]
[422597091,1779136244000,-1500.0,0.00030137,15]
[422597082,1779136244000,-164.95204809,0.00030135,30]
[422597080,1779136244000,-155.0,0.00030135,30]
[422597078,1779136244000,-172.0,0.0003,14]
[422597081,1779136244000,-158.0,0.00030135,30]
[422597084,1779136244000,-157.0,0.00030135,30]
[422597085,1779136244000,-261.27,0.00030136,30]
[422597083,1779136244000,-229.0,0.00030135,30]
[422597086,1779136244000,-261.27,0.00030136,30]
[422597092,1779136244000,-1500.0,0.00030137,15]
[422597095,1779136244000,-1500.0,0.00030137,15]
[422597103,1779136244000,-175.0,0.00030199,30]
[422597104,1779136244000,-157.0,0.00030199,30]
[422597094,1779136244000,-1500.0,0.00030137,15]
[422597097,1779136244000,-1500.0,0.00030137,15]
[422597096,1779136244000,-1500.0,0.00030137,15]
[422597101,1779136244000,-154.61786841,0.00030199,30]
[422597098,1779136244000,-1500.0,0.00030137,15]
[422597099,1779136244000,-1734.927438,0.00030137,15]
[422597100,1779136244000,-161.0,0.00030199,30]